lending/lending_fUSD_20260222
["ID","MTS","AMOUNT","RATE_DAILY","PERIOD"]
[406326032,1771744232322,-500.0,0.00040626,2]
[406326033,1771744232331,-300.0,0.00040626,2]
[406326034,1771744232341,-1082.06179791,0.00040626,2]
[406326035,1771744232351,-300.0,0.00040626,2]
[406326036,1771744232360,-153.0,0.000408,120]
[406326037,1771744232369,-550.0,0.00040949,5]
[406326038,1771744232376,-34310.0,0.0004095,60]
[406326039,1771744232384,-5000.0,0.00041,120]
[406326040,1771744232393,-150.0,0.00041,10]
[406326041,1771744232401,-12557.94573645,0.00041206,2]
[406326042,1771744232413,-37978.44426355,0.00041206,2]
[406326043,1771744232421,-400.0,0.000416,15]
[406326044,1771744232431,-153.0,0.000417,120]
[406326045,1771744232440,-900.0,0.000417,15]
[406326046,1771744232449,-1400.0,0.000418,15]
[406326047,1771744232458,-5560.05723678,0.000418,2]
[406326048,1771744232467,-1800.0,0.000419,15]
[406326049,1771744232476,-152.23086807,0.00041961,28]
[406326050,1771744232486,-218.20643294,0.00041961,2]
[406326051,1771744232495,-951.5715175,0.00041961,15]
[406326052,1771744232504,-206.59094724,0.00041961,2]
[406326053,1771744232513,-150.0,0.00042,10]
[406326054,1771744232522,-150.51,0.00042051,2]
[406326055,1771744232532,-150.51,0.00042051,2]
[406326056,1771744232541,-150.51,0.00042051,2]
[406326057,1771744232550,-150.51,0.00042051,2]
[406326058,1771744232559,-150.51,0.00042051,2]
[406326059,1771744232568,-150.51,0.00042051,2]
[406326060,1771744232578,-150.51,0.00042051,2]
[406326061,1771744232586,-150.51,0.00042051,2]
[406326062,1771744232596,-150.51,0.00042051,2]
[406326063,1771744232605,-150.51,0.00042051,2]
[406326064,1771744232614,-150.51,0.00042051,2]
[406326065,1771744232623,-150.51,0.00042051,2]
[406326066,1771744232632,-150.51,0.00042051,2]
[406326067,1771744232641,-150.51,0.00042051,2]
[406326068,1771744232651,-500.0,0.0004206,31]
[406326069,1771744232660,-430.95270644,0.0004206,31]
[406326070,1771744232671,-500.0,0.0004206,31]
[406326071,1771744232681,-500.0,0.0004206,31]
[406326072,1771744232695,-500.0,0.0004206,31]
[406326073,1771744232704,-500.0,0.0004206,31]
[406326074,1771744232713,-500.0,0.0004206,31]
[406326075,1771744232722,-500.0,0.0004206,31]
[406326076,1771744232732,-500.0,0.0004206,31]
[406326077,1771744232742,-200.0,0.0004206,120]
[406326078,1771744232751,-8576.49522136,0.0004206,55]
[406326198,1771744240217,-315.1908,0.0004206,55]
[406326208,1771744243220,-1000.0,0.0004206,55]
[406326209,1771744243233,-752.95166484,0.0004206,55]
[406326214,1771744246017,-3294.48894413,0.0004206,55]
[406326215,1771744246028,-4260.42872,0.0004206,55]
[406326216,1771744246039,-1957.69933996,0.0004206,55]
[406326218,1771744320077,3015.8,0.00013701,2]
[406326225,1771745206697,20027.56381653,0.000135,2]
[406326226,1771745305332,1966.97821878,0.0001,2]
[406326231,1771745315117,22869.6159865,0.0001,2]
[406326248,1771745432095,-3117.01740213,0.00016184,2]
[406326249,1771745432105,-286.0,0.00016184,2]
[406326250,1771745432114,-1200.0,0.00016199,2]
[406326251,1771745432124,-5000.0,0.000162,5]
[406326252,1771745432134,-300.0,0.00017998,2]
[406326253,1771745432143,-150.0,0.00017998,2]
[406326254,1771745432151,-357.48537121,0.00017999,2]
[406326255,1771745432161,-500.0,0.00017999,2]
[406326256,1771745432174,-500.0,0.00017999,2]
[406326257,1771745432183,-539.92374142,0.00017999,2]
[406326258,1771745432192,-500.0,0.00017999,2]
[406326259,1771745432201,-500.0,0.00017999,2]
[406326260,1771745432210,-500.0,0.00017999,2]
[406326261,1771745432219,-245.0753088,0.00017999,2]
[406326262,1771745432227,-500.0,0.00017999,2]
[406326263,1771745432238,-500.0,0.00017999,2]
[406326264,1771745432247,-500.0,0.00017999,2]
[406326265,1771745432257,-500.0,0.00017999,2]
[406326266,1771745432266,-500.0,0.00017999,2]
[406326267,1771745432275,-500.0,0.00017999,2]
[406326268,1771745432284,-500.0,0.00017999,2]
[406326269,1771745432294,-200.0,0.00017999,2]
[406326270,1771745432303,-176.36956909,0.00017999,2]
[406326271,1771745432312,-649.35555745,0.00017999,2]
[406326272,1771745432322,-649.35555745,0.00017999,2]
[406326274,1771745432331,-500.0,0.00017999,2]
[406326275,1771745432340,-649.35555745,0.00017999,2]
[406326276,1771745432351,-500.0,0.00017999,2]
[406326277,1771745432361,-649.35555745,0.00017999,2]
[406326278,1771745432372,-649.35555745,0.00017999,2]
[406326279,1771745432382,-649.35555745,0.00017999,2]
[406326280,1771745432392,-649.35555745,0.00017999,2]
[406326282,1771745432400,-649.35555745,0.00017999,2]
[406326283,1771745432410,-649.35555745,0.00017999,2]
[406326284,1771745432419,-649.35555745,0.00017999,2]
[406326285,1771745432429,-649.35555745,0.00017999,2]
[406326286,1771745432439,-649.35555745,0.00017999,2]
[406326287,1771745432449,-649.35555745,0.00017999,2]
[406326288,1771745432458,-649.35555745,0.00017999,2]
[406326289,1771745432468,-649.35555745,0.00017999,2]
[406326290,1771745432477,-649.35555745,0.00017999,2]
[406326291,1771745432487,-649.35555745,0.00017999,2]
[406326292,1771745432498,-649.35555745,0.00017999,2]
[406326293,1771745432508,-649.35555745,0.00017999,2]
[406326294,1771745432518,-649.35555745,0.00017999,2]
[406326295,1771745432527,-649.35555745,0.00017999,2]
[406326296,1771745432536,-649.35555745,0.00017999,2]
[406326297,1771745432545,-649.35555745,0.00017999,2]
[406326298,1771745432555,-649.35555745,0.00017999,2]
[406326299,1771745432564,-649.35555745,0.00017999,2]
[406326300,1771745432574,-649.35555745,0.00017999,2]
[406326301,1771745432588,-649.35555745,0.00017999,2]
[406326302,1771745432598,-649.35555745,0.00017999,2]
[406326303,1771745432607,-649.35555745,0.00017999,2]
[406326304,1771745432625,-649.35555745,0.00017999,2]
[406326305,1771745432635,-649.35555745,0.00017999,2]
[406326306,1771745432644,-649.35555745,0.00017999,2]
[406326307,1771745432653,-649.35555745,0.00017999,2]
[406326308,1771745432663,-649.35555745,0.00017999,2]
[406326309,1771745432672,-649.35555745,0.00017999,2]
[406326310,1771745432897,-649.35555745,0.00017999,2]
[406326311,1771745432910,-649.35555745,0.00017999,2]
[406326312,1771745432920,-649.35555745,0.00017999,2]
[406326313,1771745432930,-649.35555745,0.00017999,2]
[406326314,1771745432943,-649.35555745,0.00017999,2]
[406326315,1771745432953,-649.35555745,0.00017999,2]
[406326316,1771745432964,-649.35555745,0.00017999,2]
[406326317,1771745432973,-649.35555745,0.00017999,2]
[406326318,1771745432982,-649.35555745,0.00017999,2]
[406326319,1771745432992,-649.35555745,0.00017999,2]
[406326320,1771745433001,-649.35555745,0.00017999,2]
[406326321,1771745433011,-649.35555745,0.00017999,2]
[406326322,1771745433021,-649.35555745,0.00017999,2]
[406326323,1771745433031,-649.35555745,0.00017999,2]
[406326324,1771745433040,-649.35555745,0.00017999,2]
[406326325,1771745433050,-649.35555745,0.00017999,2]
[406326326,1771745433059,-649.35555745,0.00017999,2]
[406326327,1771745433068,-500.0,0.00017999,2]
[406326328,1771745433077,-400.0,0.00017999,2]
[406326329,1771745433087,-633.12166853,0.00017999,2]
[406326330,1771745433098,-633.12166853,0.00017999,2]
[406326331,1771745433107,-633.12166853,0.00017999,2]
[406326332,1771745433117,-633.12166853,0.00017999,2]
[406326333,1771745433126,-633.12166853,0.00017999,2]
[406326334,1771745433139,-633.12166853,0.00017999,2]
[406326335,1771745433148,-633.12166853,0.00017999,2]
[406326336,1771745433157,-633.12166853,0.00017999,2]
[406326337,1771745433168,-633.12166853,0.00017999,2]
[406326338,1771745433178,-633.12166853,0.00017999,2]
[406326339,1771745433187,-633.12166853,0.00017999,2]
[406326340,1771745433196,-633.12166853,0.00017999,2]
[406326341,1771745433206,-633.12166853,0.00017999,2]
[406326342,1771745433215,-633.12166853,0.00017999,2]
[406326343,1771745433224,-633.12166853,0.00017999,2]
[406326344,1771745433233,-633.12166853,0.00017999,2]
[406326345,1771745433242,-633.12166853,0.00017999,2]
[406326346,1771745433251,-633.12166853,0.00017999,2]
[406326347,1771745433260,-633.12166853,0.00017999,2]
[406326348,1771745433269,-633.12166853,0.00017999,2]
[406326349,1771745433278,-633.12166853,0.00017999,2]
[406326350,1771745433288,-633.12166853,0.00017999,2]
[406326351,1771745433297,-633.12166853,0.00017999,2]
[406326352,1771745433306,-633.12166853,0.00017999,2]
[406326353,1771745433315,-633.12166853,0.00017999,2]
[406326354,1771745433324,-633.12166853,0.00017999,2]
[406326355,1771745433337,-633.12166853,0.00017999,2]
[406326356,1771745433346,-633.12166853,0.00017999,2]
[406326357,1771745433356,-633.12166853,0.00017999,2]
[406326358,1771745433365,-633.12166853,0.00017999,2]
[406326359,1771745433374,-663.27031939,0.00017999,2]
[406326360,1771745433384,-663.27031939,0.00017999,2]
[406326361,1771745433394,-663.27031939,0.00017999,2]
[406326362,1771745433404,-663.27031939,0.00017999,2]
[406326363,1771745433413,-663.27031939,0.00017999,2]
[406326364,1771745433423,-663.27031939,0.00017999,2]
[406326365,1771745433433,-663.27031939,0.00017999,2]
[406326366,1771745433442,-311595.69832606,0.00018,2]
[406326367,1771745433456,-265.84703492,0.00018,2]
[406326368,1771745433467,-705.89360131,0.00018,2]
[406326369,1771745433479,-17739.0871401,0.00018,2]
[406326370,1771745433490,-12979.42691393,0.00018,2]
[406326371,1771745433501,-62944.78455086,0.00018,2]
[406326372,1771745433512,-9032.55709336,0.00018,2]
[406326373,1771745433526,-263.36265892,0.00018,2]
[406326374,1771745433538,-4341.66644587,0.00018,2]
[406326375,1771745433549,-762.45579437,0.00018,2]
[406326376,1771745433560,-474.202935,0.00018,2]
[406326377,1771745438251,-833.66172791,0.00018,2]
[406326472,1771745440755,-262.632924,0.00018,2]
[406326473,1771745440842,-1683.8441683,0.00018,2]
[406326474,1771745440853,-13390.316375,0.00018,2]
[406326475,1771745440864,-325.42295744,0.00018,2]
[406326485,1771745443343,-42033.13374822,0.00018,2]
[406326486,1771745443459,-271.69228223,0.00018,2]
[406326491,1771745446441,-10405.84239758,0.00018,2]
[406326496,1771745467505,6206.25638,7.945e-05,2]
[406326497,1771745546095,500.0,0.00013101,2]
[406326498,1771745547086,500.0,0.00013101,2]
[406326499,1771745547609,500.0,0.00013101,2]
[406326500,1771745548077,500.0,0.00013101,2]
[406326501,1771745548574,500.0,0.000108,2]
[406326502,1771745548804,500.0,0.00013101,2]
[406326503,1771745549021,800.0,0.00013101,2]
[406326504,1771745549085,500.0,0.000108,2]
[406326505,1771745549291,500.0,0.00013101,2]
[406326506,1771745549654,785.68353372,0.000108,2]
[406326507,1771745549752,500.0,0.00013101,2]
[406326508,1771745550263,500.0,0.00013101,2]
[406326509,1771745550741,500.0,0.00013101,2]
[406326510,1771745551259,500.0,0.00013101,2]
[406326511,1771745551747,500.0,0.00013101,2]
[406326512,1771745552273,500.0,0.00013101,2]
[406326513,1771745552779,500.0,0.00013101,2]
[406326514,1771745553285,500.0,0.00013101,2]
[406326515,1771745553768,500.0,0.00013101,2]
[406326516,1771745554242,500.0,0.00013101,2]
[406326517,1771745554760,500.0,0.00013101,2]
[406326518,1771745555259,500.0,0.00013101,2]
[406326519,1771745555732,500.0,0.000108,2]
[406326520,1771745556220,500.0,0.000108,2]
[406326521,1771745556724,500.0,0.000108,2]
[406326522,1771745557203,500.0,0.000108,2]
[406326523,1771745557697,500.0,0.000108,2]
[406326524,1771745558181,500.0,0.000108,2]
[406326525,1771745559185,500.0,0.000108,2]
[406326526,1771745559669,500.0,0.000108,2]
[406326527,1771745560148,500.0,0.000108,2]
[406326528,1771745560627,500.0,0.000108,2]
[406326529,1771745561144,500.0,0.000108,2]
[406326530,1771745562143,500.0,0.000108,2]
[406326531,1771745562661,705.08270808,0.000108,2]
[406326532,1771745613513,-300.0,0.00015172,2]
[406326533,1771745613534,-580.0,0.00015172,2]
[406326534,1771745613554,-500.0,0.00015173,2]
[406326535,1771745613575,-500.0,0.00015173,2]
[406326536,1771745613596,-500.0,0.00015173,2]
[406326537,1771745613617,-500.0,0.00015173,2]
[406326538,1771745613640,-500.0,0.00015173,2]
[406326539,1771745613661,-501.41062027,0.00015173,2]
[406326540,1771745613680,-500.0,0.00015173,2]
[406326541,1771745613700,-500.0,0.00015173,2]
[406326542,1771745613720,-500.0,0.00015173,2]
[406326543,1771745613739,-404.76744649,0.00015173,2]
[406326544,1771745613759,-500.67985123,0.00015173,2]
[406326545,1771745613778,-420.0,0.00015173,2]
[406326547,1771745835442,500.0,0.00013101,2]
[406326548,1771745835913,500.0,0.00013101,2]
[406326549,1771745836394,500.0,0.00013101,2]
[406326550,1771745836887,500.0,0.00013101,2]
[406326551,1771745837368,500.0,0.000108,2]
[406326552,1771745837861,500.0,0.000108,2]
[406326553,1771745838333,624.0,0.000108,2]
[406326554,1771745840155,500.0,0.00013101,2]
[406326555,1771745846558,500.0,0.00013101,2]
[406326556,1771745847068,500.0,0.000108,2]
[406326557,1771745847782,461.04385964,0.00013101,2]
[406326558,1771745848481,500.0,0.00013101,2]
[406326559,1771745848951,500.0,0.00013101,2]
[406326560,1771745849439,500.0,0.00013101,2]
[406326561,1771745850005,500.0,0.00013101,2]
[406326562,1771745850413,500.0,0.000108,2]
[406326563,1771745850893,500.0,0.000108,2]
[406326564,1771745851370,500.0,0.000108,2]
[406326565,1771745851848,500.0,0.000108,2]
[406326571,1771746631320,-152.239392,0.00014443,7]
[406326572,1771746631330,-166.66,0.0001467,2]
[406326573,1771746631340,-1105.90172467,0.00014725,2]
[406326574,1771746631353,-166.66,0.00014979,2]
[406326575,1771746631363,-157.76,0.00014981,2]
[406326576,1771746631373,-250.0,0.00015,2]
[406326577,1771746631383,-504.0,0.00015101,2]
[406326578,1771746631392,-300.0,0.00015172,2]
[406326579,1771746631401,-1200.0,0.00015172,2]
[406326580,1771746631411,-500.0,0.00015173,2]
[406326581,1771746631420,-500.0,0.00015173,2]
[406326582,1771746631429,-170.78512861,0.00015173,2]
[406326583,1771746631438,-500.0,0.00015173,2]
[406326584,1771746631449,-500.0,0.00015173,2]
[406326585,1771746631459,-500.0,0.00015173,2]
[406326586,1771746631468,-500.0,0.00015173,2]
[406326587,1771746631478,-500.0,0.00015173,2]
[406326588,1771746631487,-241.86772992,0.00015173,2]
[406326589,1771746631498,-500.0,0.00015173,2]
[406326590,1771746631508,-500.0,0.00015173,2]
[406326591,1771746631518,-500.0,0.00015173,2]
[406326592,1771746631527,-500.0,0.00015173,2]
[406326593,1771746631536,-500.0,0.00015173,2]
[406326594,1771746631546,-500.0,0.00015173,2]
[406326595,1771746631555,-244.26,0.00015173,2]
[406326596,1771746631564,-189.70290032,0.00015173,2]
[406326597,1771746631575,-150.0,0.00015201,2]
[406326598,1771746631584,-150.0,0.00015202,2]
[406326599,1771746631594,-150.0,0.00015203,2]
[406326600,1771746631604,-150.0,0.00015204,2]
[406326602,1771746631613,-150.0,0.00015205,2]
[406326604,1771746631622,-150.0,0.00015206,2]
[406326606,1771746631631,-150.0,0.00015207,2]
[406326607,1771746631639,-150.0,0.00015208,2]
[406326608,1771746631648,-150.0,0.00015209,2]
[406326609,1771746631657,-154.831517,0.0001521,2]
[406326610,1771746631667,-166.66,0.00015288,2]
[406326611,1771746631676,-244.26,0.00015447,2]
[406326612,1771746631686,-259.75701162,0.00015591,2]
[406326613,1771746631695,-166.66,0.00015596,2]
[406326614,1771746631705,-976.0,0.00015615,2]
[406326615,1771746631714,-268.0,0.00015636,2]
[406326616,1771746631723,-955.0,0.00015646,2]
[406326617,1771746631732,-1453.0,0.00015667,2]
[406326618,1771746631741,-1193.0,0.00015678,2]
[406326619,1771746631750,-340.0,0.00015699,2]
[406326620,1771746631759,-1233.0,0.00015709,2]
[406326621,1771746631768,-500.0,0.00015721,2]
[406326622,1771746631777,-1050.01264972,0.00015721,2]
[406326623,1771746631786,-1001.70650637,0.00015721,2]
[406326624,1771746631795,-1000.0,0.00015721,2]
[406326625,1771746631804,-1000.0,0.00015721,2]
[406326626,1771746631813,-1000.0,0.00015721,2]
[406326627,1771746631822,-1000.0,0.00015721,2]
[406326628,1771746631831,-1000.0,0.00015721,2]
[406326629,1771746631840,-1000.0,0.00015721,2]
[406326630,1771746631849,-1002.25561136,0.00015721,2]
[406326631,1771746631859,-1000.0,0.00015721,2]
[406326632,1771746631867,-328.21715398,0.00015721,2]
[406326633,1771746631880,-235.93365693,0.00015721,2]
[406326634,1771746631889,-244.26,0.00015721,2]
[406326635,1771746631898,-155.0,0.00015826,2]
[406326636,1771746631907,-150.0,0.00015826,2]
[406326637,1771746631919,-150.0,0.00015826,2]
[406326638,1771746631928,-1001.79575194,0.00015845,2]
[406326639,1771746631938,-15504.29987932,0.00015846,2]
[406326640,1771746631948,-200.0,0.00015847,2]
[406326641,1771746631958,-151.0,0.00015847,2]
[406326642,1771746631967,-151.0,0.00015847,2]
[406326643,1771746631976,-151.0,0.00015847,2]
[406326644,1771746631985,-151.0,0.00015847,2]
[406326645,1771746631995,-151.0,0.00015847,2]
[406326646,1771746632004,-151.0,0.00015847,2]
[406326647,1771746632013,-500.0,0.00015847,2]
[406326648,1771746632022,-151.0,0.00015847,2]
[406326649,1771746632031,-151.0,0.00015847,2]
[406326650,1771746632040,-500.0,0.00015847,2]
[406326651,1771746632050,-200.0,0.00015847,2]
[406326652,1771746632059,-151.0,0.00015847,2]
[406326653,1771746632068,-151.0,0.00015847,2]
[406326654,1771746632077,-151.0,0.00015847,2]
[406326655,1771746632086,-151.0,0.00015847,2]
[406326656,1771746632095,-151.0,0.00015847,2]
[406326657,1771746632104,-151.0,0.00015847,2]
[406326658,1771746632114,-151.0,0.00015847,2]
[406326659,1771746632123,-151.0,0.00015847,2]
[406326660,1771746632132,-151.0,0.00015847,2]
[406326661,1771746632141,-151.0,0.00015847,2]
[406326662,1771746632150,-151.0,0.00015847,2]
[406326663,1771746632159,-151.0,0.00015847,2]
[406326664,1771746632172,-151.0,0.00015847,2]
[406326665,1771746632181,-500.0,0.00015847,2]
[406326666,1771746632190,-151.0,0.00015847,2]
[406326667,1771746632199,-151.0,0.00015847,2]
[406326668,1771746632209,-151.0,0.00015847,2]
[406326669,1771746632218,-151.0,0.00015847,2]
[406326670,1771746632228,-151.0,0.00015847,2]
[406326671,1771746632237,-151.0,0.00015847,2]
[406326672,1771746632246,-151.0,0.00015847,2]
[406326673,1771746632255,-151.0,0.00015847,2]
[406326674,1771746632264,-151.0,0.00015847,2]
[406326675,1771746632273,-151.0,0.00015847,2]
[406326676,1771746632282,-151.0,0.00015847,2]
[406326677,1771746632291,-151.0,0.00015847,2]
[406326678,1771746632300,-151.0,0.00015847,2]
[406326679,1771746632309,-151.0,0.00015847,2]
[406326680,1771746632318,-151.0,0.00015847,2]
[406326681,1771746632327,-151.0,0.00015847,2]
[406326682,1771746632337,-151.0,0.00015847,2]
[406326683,1771746632347,-151.0,0.00015847,2]
[406326684,1771746632356,-500.0,0.00015847,2]
[406326685,1771746632365,-500.0,0.00015847,2]
[406326686,1771746632375,-20838.66426264,0.00015856,2]
[406326687,1771746632384,-381.0,0.00015857,2]
[406326688,1771746632393,-373.0,0.00015878,2]
[406326689,1771746632403,-166.66,0.00015905,2]
[406326690,1771746632412,-500.0,0.00015995,2]
[406326691,1771746632421,-244.26,0.00015995,2]
[406326692,1771746632431,-150.0,0.00015995,2]
[406326693,1771746632440,-174.77982879,0.0001605,2]
[406326694,1771746632450,-500.0,0.000161,2]
[406326695,1771746632460,-876.47389705,0.00016137,2]
[406326696,1771746632470,-325.89,0.00016154,2]
[406326697,1771746632479,-600.0,0.00016154,2]
[406326698,1771746632489,-166.66,0.00016214,2]
[406326699,1771746632499,-244.27336887,0.00016268,2]
[406326700,1771746632508,-1482.49680288,0.00016268,2]
[406326701,1771746632517,-1500.0,0.00016268,2]
[406326702,1771746632526,-1275.01711589,0.00016268,2]
[406326703,1771746632536,-500.0,0.00016268,2]
[406326704,1771746632546,-527.71923747,0.00016268,2]
[406326705,1771746632555,-1500.0,0.00016268,2]
[406326706,1771746632565,-1500.0,0.00016268,2]
[406326707,1771746632575,-1500.0,0.00016268,2]
[406326708,1771746632585,-510.0,0.00016294,2]
[406326709,1771746632594,-200.0,0.00016395,2]
[406326710,1771746632603,-200.0,0.00016395,2]
[406326711,1771746632613,-500.0,0.00016395,2]
[406326712,1771746632622,-3240.0,0.00016395,2]
[406326713,1771746632631,-1093.20334907,0.00016485,2]
[406326714,1771746632640,-16906.71,0.00016486,2]
[406326715,1771746632649,-500.0,0.00016542,2]
[406326716,1771746632658,-1680.0,0.00016686,2]
[406326717,1771746632668,-26271.5767549,0.00016768,2]
[406326718,1771746632678,-2000.0,0.00016816,2]
[406326719,1771746632687,-500.0,0.00016816,2]
[406326720,1771746632696,-2000.0,0.00016816,2]
[406326721,1771746632706,-503.87713345,0.00016816,2]
[406326722,1771746632715,-2000.0,0.00016816,2]
[406326723,1771746632725,-5668.83434505,0.00016819,2]
[406326724,1771746632734,-157.76,0.00016853,2]
[406326725,1771746632744,-3837.75,0.00016922,2]
[406326726,1771746632753,-3622.28,0.00016922,2]
[406326727,1771746632764,-19999.99,0.00016922,2]
[406326728,1771746632774,-299.99,0.00016922,4]
[406326729,1771746632785,-150.99,0.00016922,2]
[406326730,1771746632794,-306.28,0.00016922,2]
[406326731,1771746632803,-150.99,0.00016922,2]
[406326732,1771746632813,-4225.0,0.00016922,2]
[406326733,1771746632823,-9999.99,0.00016922,2]
[406326734,1771746632832,-9999.99,0.00016922,2]
[406326735,1771746632841,-999.99,0.00016922,2]
[406326736,1771746632851,-200.0,0.00016943,2]
[406326737,1771746632861,-200.0,0.00016943,2]
[406326738,1771746632871,-500.0,0.00016943,2]
[406326739,1771746632882,-1500.0,0.00016973,2]
[406326740,1771746632892,-962.16446561,0.00017036,2]
[406326741,1771746632902,-2705.0,0.0001709,2]
[406326742,1771746632911,-500.0,0.0001709,2]
[406326743,1771746632921,-2705.0,0.00017145,2]
[406326744,1771746632931,-2705.0,0.000172,2]
[406326745,1771746632941,-2705.0,0.00017254,2]
[406326746,1771746632952,-2705.0,0.00017309,2]
[406326747,1771746632961,-6900.8256938,0.00017335,2]
[406326748,1771746632971,-2705.0,0.00017364,2]
[406326749,1771746632980,-301.80668548,0.00017364,2]
[406326750,1771746632989,-531.27835784,0.00017364,2]
[406326751,1771746632998,-2500.0,0.00017364,2]
[406326752,1771746633008,-2500.0,0.00017364,2]
[406326753,1771746633017,-2705.0,0.00017419,2]
[406326754,1771746633026,-500.0,0.00017469,2]
[406326755,1771746633035,-500.0,0.00017469,2]
[406326756,1771746633044,-2705.0,0.00017474,2]
[406326757,1771746633053,-200.0,0.00017491,2]
[406326758,1771746633062,-200.0,0.00017491,2]
[406326759,1771746633071,-500.0,0.00017491,2]
[406326760,1771746633081,-866.0,0.00017493,2]
[406326761,1771746633090,-2705.0,0.00017528,2]
[406326762,1771746633099,-2705.0,0.00017583,2]
[406326763,1771746633109,-2705.0,0.00017638,2]
[406326764,1771746633118,-500.0,0.00017692,2]
[406326765,1771746633127,-500.0,0.00017692,2]
[406326766,1771746633136,-2705.0,0.00017693,2]
[406326767,1771746633146,-200.0,0.000177,6]
[406326768,1771746633155,-2705.0,0.00017748,2]
[406326769,1771746633164,-400.0,0.000178,6]
[406326770,1771746633173,-2705.0,0.00017802,2]
[406326771,1771746633182,-801.76697178,0.00017808,2]
[406326772,1771746633191,-6979.23072247,0.0001783,2]
[406326773,1771746633200,-2705.0,0.00017857,2]
[406326774,1771746633209,-22900.74618278,0.00017899,2]
[406326775,1771746633218,-700.0,0.000179,6]
[406326776,1771746633227,-220.93223051,0.000179,2]
[406326777,1771746633236,-1193.11955742,0.000179,2]
[406326778,1771746633245,-707.24942448,0.000179,2]
[406326779,1771746633254,-2705.0,0.00017912,2]
[406326780,1771746633264,-3000.0,0.00017912,2]
[406326781,1771746633273,-2377.20909449,0.00017912,2]
[406326782,1771746633282,-2705.0,0.00017967,2]
[406326783,1771746633291,-2322.97315529,0.0001799,2]
[406326784,1771746633301,-500.0,0.00017999,2]
[406326785,1771746633310,-500.0,0.00017999,2]
[406326786,1771746633319,-500.0,0.00017999,2]
[406326787,1771746633328,-500.0,0.00017999,2]
[406326788,1771746633337,-500.0,0.00017999,2]
[406326789,1771746633346,-500.0,0.00017999,2]
[406326790,1771746633356,-500.0,0.00017999,2]
[406326791,1771746633365,-500.0,0.00017999,2]
[406326792,1771746633374,-500.0,0.00017999,2]
[406326793,1771746633383,-500.0,0.00017999,2]
[406326794,1771746633393,-500.0,0.00017999,2]
[406326795,1771746633403,-500.0,0.00017999,2]
[406326796,1771746633412,-500.0,0.00017999,2]
[406326797,1771746633421,-500.0,0.00017999,2]
[406326798,1771746633430,-500.0,0.00017999,2]
[406326799,1771746633439,-500.0,0.00017999,2]
[406326800,1771746633449,-810.07,0.00017999,2]
[406326801,1771746633457,-810.07,0.00017999,2]
[406326802,1771746633466,-810.07,0.00017999,2]
[406326803,1771746633475,-810.07,0.00017999,2]
[406326804,1771746633484,-810.07,0.00017999,2]
[406326805,1771746633493,-810.07,0.00017999,2]
[406326806,1771746633503,-810.07,0.00017999,2]
[406326807,1771746633512,-810.07,0.00017999,2]
[406326808,1771746633522,-515.6,0.00017999,2]
[406326809,1771746633531,-515.6,0.00017999,2]
[406326810,1771746633725,-515.6,0.00017999,2]
[406326811,1771746633736,-515.6,0.00017999,2]
[406326812,1771746633747,-515.6,0.00017999,2]